bitfinex-derivatives/quotes_SOLF0:USTF0_20250929
["timestamp","ask_amount","ask_price","bid_price","bid_amount"]
[1759153638754,132.0,208.45,208.3,181.54497051]
[1759153638755,67.1411,208.42,208.3,181.54497051]
[1759153638947,71.4573,208.42,208.3,181.54497051]
[1759153639254,67.1476,208.4,208.3,181.54497051]
[1759153639459,67.1541,208.38,208.3,181.54497051]
[1759153639753,138.53,208.44,208.3,181.54497051]
[1759153639950,205.6644,208.44,208.3,181.54497051]
[1759153640150,209.9801,208.44,208.3,181.54497051]
[1759153640648,138.53,208.44,208.3,181.54497051]
[1759153640850,67.1377,208.43,208.3,181.54497051]
[1759153641050,71.4606,208.41,208.3,181.54497051]
[1759153641254,136.8365,208.41,208.3,181.54497051]
[1759153641450,132.52,208.41,208.3,181.54497051]
[1759153641648,6.63,208.44,208.3,181.54497051]
[1759153641849,132.46,208.43,208.3,181.54497051]
[1759153642045,67.1437,208.41,208.3,181.54497051]
[1759153642451,132.46,208.43,208.3,181.54497051]
[1759153642853,67.1415,208.42,208.3,181.54497051]
[1759153643052,4.3162,208.42,208.3,181.54497051]
[1759153643249,6.63,208.44,208.3,181.54497051]
[1759153643461,132.34,208.41,208.3,185.86347051]
[1759153643650,132.34,208.41,208.3,181.54497051]
[1759153644358,10.9769,208.39,208.3,181.54497051]
[1759153644858,4.3173,208.37,208.28,7.68]
[1759153645358,6.66,208.39,208.28,7.68]
[1759153646250,4.317,208.38,208.28,7.68]
[1759153646456,6.66,208.39,208.28,7.68]
[1759153646952,4.3173,208.37,208.28,7.68]
[1759153647153,6.66,208.39,208.28,7.68]
[1759153647456,132.14,208.38,208.28,7.68]
[1759153647658,6.66,208.39,208.29,4.3188]
[1759153647851,132.1,208.39,208.31,7.5]
[1759153648850,6.66,208.45,208.32,67.1723]
[1759153649050,132.02,208.44,208.33,7.5]
[1759153649250,6.66,208.51,208.37,7.5]
[1759153649455,131.96,208.49,208.37,7.5]
[1759153649656,131.96,208.49,208.4,4.3165]
[1759153649851,131.96,208.49,208.37,7.5]
[1759153650158,131.96,208.49,208.38,4.3169]
[1759153650355,131.96,208.49,208.37,7.5]
[1759153650653,6.66,208.51,208.37,7.5]
[1759153650862,4.3147,208.49,208.38,4.3167]
[1759153651256,67.1156,208.5,208.37,7.5]
[1759153651455,4.3151,208.47,208.37,11.8171]
[1759153651655,6.66,208.51,208.37,11.8171]
[1759153651957,6.66,208.51,208.4,4.3165]
[1759153652154,322.62,208.54,208.41,7.5]
[1759153652355,326.9337,208.54,208.41,7.5]
[1759153652552,73.7717,208.51,208.37,4.38342429]
[1759153652752,73.7717,208.51,208.35,7.5]
[1759153652753,67.1158,208.5,208.35,7.5]
[1759153652961,67.128,208.46,208.35,7.5]
[1759153653261,138.82,208.45,208.3,11.88342429]
[1759153653447,67.1346,208.44,208.31,183.65569092]
[1759153653646,67.1374,208.43,208.31,183.65569092]
[1759153653852,73.8042,208.41,208.24,7.5]
[1759153654052,4.3174,208.36,208.24,7.5]
[1759153654258,102.36,208.37,208.24,7.5]
[1759153654453,67.1638,208.35,208.24,7.5]
[1759153654654,6.66,208.34,208.19,211.31772429]
[1759153654958,67.1504,208.39,208.26,67.1917]
[1759153654959,94.46,208.38,208.26,67.1917]
[1759153655159,4.3168,208.39,208.27,67.1872]
[1759153655160,132.18,208.39,208.27,67.1872]
[1759153655356,6.66,208.43,208.28,7.5]
[1759153655665,132.16,208.42,208.28,7.5]
[1759153656060,4.3167,208.39,208.28,7.5]
[1759153656757,132.04,208.39,208.28,7.5]
[1759153657154,132.04,208.39,208.28,74.6853]
[1759153657559,6.66,208.43,208.28,7.5]
[1759153657764,67.06,208.42,208.28,7.5]
[1759153658160,67.1451,208.41,208.28,7.5]
[1759153658362,6.66,208.37,208.22,7.5]
[1759153658756,4.3174,208.36,208.26,4.3193]
[1759153658965,114.94,208.37,208.27,67.1885]
[1759153659159,6.66,208.43,208.31,67.1737]
[1759153659368,6.66,208.43,208.36,4.3172]
[1759153659666,136.1555,208.45,208.36,4.3172]
[1759153660072,6.66,208.49,208.38,67.1532]
[1759153660370,6.66,208.49,208.39,67.1503]
[1759153660871,6.66,208.49,208.37,11.88342429]
[1759153661072,6.66,208.49,208.38,67.1527]
[1759153661272,6.66,208.49,208.37,11.88342429]
[1759153661273,6.66,208.49,208.43,4.3159]
[1759153661474,6.66,208.49,208.38,67.1528]
[1759153661674,4.3145,208.5,208.38,67.1531]
[1759153661880,4.3145,208.5,208.37,7.5]
[1759153662169,4.3149,208.48,208.37,7.5]
[1759153662371,67.1181,208.49,208.37,7.5]
[1759153662571,6.66,208.48,208.37,7.5]
[1759153662771,138.38,208.48,208.37,7.5]
[1759153663671,4.3155,208.46,208.37,7.5]
[1759153664070,131.72,208.47,208.37,7.5]
[1759153664375,6.66,208.48,208.37,7.5]
[1759153664567,322.62,208.54,208.43,7.5]
[1759153664768,322.62,208.54,208.47,4.315]
[1759153665166,322.62,208.54,208.43,7.5]
[1759153665468,322.62,208.54,208.45,67.1306]
[1759153665669,322.62,208.54,208.43,7.5]
[1759153665868,322.62,208.54,208.44,4.3155]
[1759153666071,322.62,208.54,208.43,7.5]
[1759153666276,322.62,208.54,208.47,4.3149]
[1759153666581,131.62,208.58,208.45,67.1308]
[1759153666983,131.62,208.58,208.49,4.3146]
[1759153667183,131.62,208.58,208.46,7.5]
[1759153667386,4.3136,208.55,208.46,7.5]
[1759153667578,198.7095,208.58,208.46,7.5]
[1759153667787,131.62,208.58,208.46,7.5]
[1759153668084,131.62,208.58,208.43,74.6352]
[1759153668085,6.66,208.56,208.43,74.6352]
[1759153668281,6.66,208.61,208.47,7.5]
[1759153668479,131.46,208.6,208.47,7.5]
[1759153668879,4.3126,208.6,208.52,4.314]
[1759153669085,138.26,208.61,208.52,4.314]
[1759153669282,6.66,208.67,208.51,74.6112]
[1759153669482,4.3116,208.64,208.54,4.3136]
[1759153669684,131.56,208.66,208.51,7.5]
[1759153670280,6.66,208.62,208.51,7.5]
[1759153670482,67.086,208.59,208.46,7.5]
[1759153670676,67.0669,208.65,208.46,7.5]
[1759153670887,6.66,208.62,208.46,7.5]
[1759153671087,131.66,208.61,208.46,7.5]
[1759153671280,4.3129,208.58,208.46,7.5]
[1759153671485,131.62,208.6,208.47,4.38342429]
[1759153671681,198.7039,208.6,208.47,4.38342429]
[1759153671884,4.3133,208.56,208.46,11.8151]
[1759153672580,10.9728,208.59,208.46,7.5]
[1759153672987,67.0894,208.58,208.46,7.5]
[1759153673378,67.0894,208.58,208.39,131.44]
[1759153673379,67.1027,208.54,208.39,7.5]
[1759153673584,6.66,208.5,208.39,7.5]
[1759153674092,4.3151,208.48,208.39,7.5]
[1759153674289,67.1181,208.49,208.33,4.38342429]
[1759153674589,67.1181,208.49,208.32,252.83287147]
[1759153674590,4.3157,208.44,208.34,7.37]
[1759153674798,6.65,208.47,208.34,7.37]
[1759153675084,67.1181,208.49,208.32,185.66107147]
[1759153675085,4.3165,208.4,208.32,185.66107147]
[1759153675284,137.97,208.43,208.32,185.66107147]
[1759153675481,137.97,208.43,208.32,189.97927147]
[1759153675685,67.1406,208.42,208.32,185.66107147]
[1759153675991,6.65,208.39,208.23,7.37]
[1759153676187,4.3174,208.37,208.23,7.37]
[1759153676382,4.3174,208.37,208.23,74.5715]
[1759153676686,4.3176,208.35,208.23,11.69]
[1759153676885,4.3176,208.35,208.23,7.37]
[1759153677085,6.65,208.39,208.24,67.1971]
[1759153677284,44.4,208.38,208.24,67.1971]
[1759153677479,44.4,208.38,208.27,4.3192]
[1759153677678,131.36,208.37,208.27,4.3192]
[1759153677886,4.3177,208.35,208.24,4.3198]
[1759153678086,6.65,208.36,208.23,7.37]
[1759153678685,6.65,208.36,208.23,11.69]
[1759153679496,6.65,208.36,208.23,7.37]
[1759153679891,6.65,208.36,208.16,7.37]
[1759153679892,67.1859,208.28,208.16,7.37]
[1759153680097,67.1926,208.26,208.1,7.37]
[1759153680291,6.65,208.26,208.1,7.37]
[1759153680491,67.2129,208.2,207.99,67.2769]
[1759153680692,137.89,208.19,208.03,67.2668]
[1759153680892,6.65,208.19,208.07,4.3234]
[1759153681093,131.38,208.19,208.06,7.37]
[1759153681393,6.65,208.18,208.06,74.6264]
[1759153681593,6.65,208.24,208.1,67.243]
[1759153681797,76.26,208.23,208.1,7.37]
[1759153682098,6.65,208.24,208.1,7.37]
[1759153682099,131.54,208.22,208.1,7.37]
[1759153682297,6.65,208.24,208.11,67.2405]
[1759153682491,6.65,208.24,208.1,7.37]
[1759153682687,76.8,208.23,208.1,7.37]
[1759153682893,6.65,208.24,208.11,71.5629]
[1759153683197,76.34,208.25,208.13,67.2341]
[1759153683398,6.65,208.3,208.13,4.3221]
[1759153683601,4.3189,208.29,208.13,71.5557]
[1759153683798,6.65,208.3,208.16,67.2245]
[1759153684000,6.65,208.3,208.18,67.2158]
[1759153684197,6.65,208.3,208.2,67.2115]
[1759153684398,328.95,208.35,208.23,67.2017]
[1759153684698,131.6,208.38,208.23,74.5717]
[1759153685092,6.65,208.37,208.23,7.37]
[1759153685409,6.65,208.37,208.24,67.1983]
[1759153685697,6.65,208.37,208.23,11.6901]
[1759153686098,4.3178,208.35,208.23,7.37]
[1759153686293,6.65,208.37,208.23,7.37]
[1759153686493,6.65,208.37,208.24,67.1985]
[1759153686699,6.65,208.37,208.24,67.1983]
[1759153686897,131.46,208.36,208.24,67.1983]
[1759153687101,131.46,208.36,208.24,4.3198]
[1759153687303,131.4,208.36,208.24,4.3198]
[1759153687500,131.4,208.36,208.23,7.37]
[1759153687999,131.36,208.37,208.26,67.1923]
[1759153688205,6.65,208.42,208.3,67.1792]
[1759153688404,137.97,208.42,208.3,67.1792]
[1759153688600,137.97,208.42,208.3,4.3186]
[1759153688901,137.97,208.42,208.3,67.1782]
[1759153689104,137.97,208.42,208.29,7.37]
[1759153689310,131.5,208.41,208.29,7.37]
[1759153689909,202.961,208.41,208.29,7.37]
[1759153690110,67.1512,208.39,208.24,7.37]
[1759153690310,6.65,208.4,208.25,67.1958]
[1759153690606,131.48,208.39,208.25,71.5154]
[1759153691109,6.65,208.4,208.27,4.3191]
[1759153691312,131.38,208.4,208.3,67.1799]
[1759153691502,6.65,208.45,208.31,67.1761]
[1759153691708,79.8,208.44,208.33,67.1702]
[1759153691912,79.8,208.44,208.33,74.5402]
[1759153692215,4.3146,208.5,208.36,4.3172]
[1759153692518,4.3146,208.5,208.37,7.37]
[1759153692812,4.3149,208.48,208.37,7.37]
[1759153693004,135.5949,208.48,208.37,7.37]
[1759153693315,73.779,208.46,208.31,7.37]
[1759153693507,73.779,208.46,208.31,74.5461]
[1759153693508,6.65,208.46,208.31,74.5461]
[1759153693710,6.65,208.46,208.34,67.1668]
[1759153694010,389.5702,208.52,208.36,67.1604]
[1759153694207,10.9745,208.51,208.39,4.3167]
[1759153694408,131.36,208.5,208.39,4.3167]
[1759153694606,6.66,208.51,208.39,4.3167]
[1759153694806,63.86,208.51,208.41,4.3163]
[1759153695012,137.98,208.51,208.41,4.3163]
[1759153695213,142.2944,208.51,208.37,8.09]
[1759153695615,137.98,208.51,208.38,4.317]
[1759153695816,137.98,208.51,208.38,67.1534]
[1759153696017,137.98,208.51,208.37,8.09]
[1759153696310,137.98,208.51,208.4,4.3165]
[1759153696517,6.66,208.51,208.41,8.09]
[1759153696904,131.08,208.57,208.42,67.1406]
[1759153697108,131.08,208.57,208.47,8.09]
[1759153697506,131.08,208.57,208.39,75.2395]
[1759153697711,6.66,208.56,208.39,75.2395]
[1759153697912,73.7565,208.56,208.39,8.09]
[1759153698115,6.66,208.56,208.4,67.145]
[1759153698317,6.66,208.56,208.42,67.1402]
[1759153698710,6.66,208.56,208.41,8.09]
[1759153698910,67.0999,208.55,208.41,8.09]
[1759153699119,4.3142,208.52,208.41,8.09]
[1759153699720,6.66,208.56,208.41,12.4063]
[1759153699934,142.2327,208.59,208.43,8.09]
[1759153700213,6.66,208.56,208.43,8.09]
[1759153700417,4.3136,208.55,208.43,8.09]
[1759153700918,6.66,208.56,208.43,8.09]
[1759153701317,4.3138,208.54,208.43,8.09]
[1759153701620,67.1034,208.54,208.43,8.09]
[1759153701814,67.0998,208.55,208.43,8.09]
[1759153702018,4.3142,208.52,208.4,4.3165]
[1759153702412,67.1158,208.5,208.38,8.09]
[1759153702608,6.66,208.52,208.38,8.09]
[1759153702814,6.66,208.52,208.38,75.2432]
[1759153703017,6.66,208.52,208.42,4.3161]
[1759153703210,6.66,208.52,208.42,12.4061]
[1759153703610,131.02,208.54,208.44,4.3157]
[1759153703812,131.0,208.56,208.42,8.09]
[1759153704218,4.3135,208.55,208.42,12.4061]
[1759153704610,4.3135,208.55,208.42,8.09]
[1759153704810,131.0,208.56,208.44,67.134]
[1759153705019,6.66,208.58,208.45,7.89]
[1759153705220,6.66,208.58,208.46,67.1283]
[1759153705520,6.66,208.58,208.48,4.3148]
[1759153706320,10.9729,208.58,208.45,12.2054]
[1759153706519,10.9729,208.58,208.45,7.89]
[1759153707219,322.44,208.61,208.48,75.0116]
[1759153707416,322.44,208.61,208.49,67.1178]
[1759153707725,6.65,208.63,208.55,4.3134]
[1759153707923,6.65,208.63,208.51,7.89]
[1759153708327,6.65,208.63,208.52,67.1086]
[1759153708521,130.46,208.66,208.53,67.1055]
[1759153708725,130.46,208.66,208.51,7.89]
[1759153708926,4.3115,208.65,208.51,7.89]
[1759153709127,130.46,208.66,208.51,7.89]
[1759153709427,197.5244,208.66,208.51,7.89]
[1759153709824,130.46,208.66,208.51,7.89]
[1759153710026,4.3116,208.64,208.51,7.89]
[1759153710225,7.48449235,208.65,208.51,7.89]
[1759153710421,4.3121,208.62,208.51,12.2042]
[1759153710624,6.65,208.61,208.46,7.89]
[1759153710820,6.65,208.61,208.46,75.0178]
[1759153711130,96.01449235,208.65,208.51,67.1119]
[1759153711332,96.01449235,208.65,208.52,7.89]
[1759153711529,95.18,208.65,208.54,67.1024]
[1759153711732,6.65,208.66,208.53,67.1051]
[1759153711922,6.65,208.66,208.57,4.313]
[1759153712121,6.65,208.66,208.52,7.89]
[1759153712427,6.65,208.66,208.53,67.1056]
[1759153712728,6.65,208.66,208.52,7.89]
[1759153713330,4.3122,208.62,208.52,7.89]
[1759153713530,67.0711,208.64,208.52,7.89]
[1759153713732,6.65,208.63,208.48,7.89]
[1759153714733,4.3125,208.6,208.48,7.89]
[1759153715030,6.65,208.63,208.48,7.89]
[1759153715829,67.0792,208.61,208.48,7.89]
[1759153716028,6.65,208.6,208.48,7.89]
[1759153716222,6.97345215,208.66,208.49,67.1158]
[1759153716223,6.65,208.66,208.49,67.1158]
[1759153716432,89.98,208.65,208.5,7.89]
[1759153716625,94.2913,208.65,208.54,4.3134]
[1759153717030,89.98,208.65,208.54,4.3134]
[1759153717831,129.78,208.65,208.54,4.3134]
[1759153718631,134.0915,208.65,208.54,4.3134]
[1759153718832,4.3115,208.65,208.55,4.3132]
[1759153719233,136.29,208.66,208.55,4.3132]
[1759153719635,136.29,208.66,208.53,7.89]
[1759153720224,4.3117,208.64,208.53,12.2037]
[1759153720426,136.29,208.66,208.53,7.89]
[1759153720626,4.3121,208.62,208.53,7.89]
[1759153720832,6.65,208.62,208.49,67.1172]
[1759153721038,6.65,208.62,208.5,7.89]
[1759153721332,6.65,208.62,208.53,4.3136]
[1759153721732,6.65,208.62,208.5,7.89]
[1759153722640,10.9621,208.62,208.52,4.3139]
[1759153723632,0.83443232,208.67,208.52,67.1077]
[1759153723833,7.48443232,208.67,208.53,7.89]
[1759153724736,6.65,208.67,208.56,7.89]
[1759153724938,6.65,208.72,208.56,7.89]
[1759153725131,4.311,208.67,208.56,7.89]
[1759153725336,6.65,208.7,208.56,7.89]
[1759153725634,4.3122,208.61,208.5,12.2044]
[1759153725832,6.65,208.66,208.5,7.89]
[1759153726533,67.078,208.62,208.5,7.89]
[1759153726835,67.078,208.62,208.44,67.1329]
[1759153726836,6.65,208.59,208.46,4.3151]
[1759153727037,6.65,208.59,208.47,7.89]
[1759153727536,4.313,208.58,208.47,7.89]
[1759153727730,6.65,208.59,208.47,7.89]
[1759153728135,4.3134,208.56,208.47,7.89]
[1759153728433,6.65,208.57,208.39,7.89]
[1759153728634,6.65,208.55,208.39,7.89]
[1759153728850,6.65,208.55,208.42,4.3159]
[1759153729739,10.9643,208.51,208.4,4.3163]
[1759153729941,91.58,208.55,208.41,7.89]
[1759153730240,98.23,208.55,208.41,7.89]
[1759153730746,129.06,208.58,208.44,7.89]
[1759153730939,6.65,208.61,208.46,67.1271]
[1759153731234,70.14,208.6,208.46,67.1271]
[1759153731438,10.9622,208.61,208.51,4.3142]
[1759153731939,4.3117,208.64,208.53,4.3138]
[1759153732141,4.3117,208.64,208.53,7.89]
[1759153732441,6.65,208.66,208.53,7.89]
[1759153732641,6.65,208.66,208.52,67.1075]
[1759153732642,118.42,208.7,208.57,7.89]
[1759153732839,7.48432229,208.71,208.57,7.89]
[1759153733038,7.48432229,208.71,208.62,4.3118]
[1759153733444,67.0502,208.7,208.57,7.89]
[1759153733734,74.53142229,208.71,208.51,7.89]
[1759153733735,6.65,208.64,208.51,7.89]
[1759153733942,4.3107,208.68,208.54,7.89]
[1759153734141,67.0571,208.68,208.54,7.89]
[1759153734335,6.65,208.66,208.49,75.0968]
[1759153734642,128.92,208.65,208.49,75.0968]
[1759153734844,133.2315,208.65,208.51,67.1097]
[1759153735039,128.86,208.65,208.53,7.98]
[1759153735242,6.65,208.66,208.53,7.98]
[1759153735841,4.3117,208.64,208.54,4.3134]
[1759153736342,6.65,208.66,208.45,120.52461706]
[1759153736343,67.0724,208.63,208.45,74.10185215]
[1759153736647,6.65,208.62,208.47,67.1232]
[1759153736838,6.65,208.62,208.48,7.98]
[1759153737346,67.0815,208.6,208.48,7.98]
[1759153737540,6.65,208.59,208.43,7.98]
[1759153737740,6.65,208.59,208.45,7.98]
[1759153737936,6.65,208.59,208.47,67.1235]
[1759153738137,6.65,208.59,208.45,7.98]
[1759153738340,6.65,208.59,208.48,4.3147]
[1759153738539,6.65,208.56,208.4,7.98]
[1759153738740,6.65,208.53,208.4,7.98]
[1759153738940,67.1014,208.54,208.34,7.98]
[1759153738941,67.1146,208.5,208.34,7.98]
[1759153739240,6.65,208.48,208.34,75.1453]
[1759153739438,27.07,208.55,208.41,7.98]
[1759153739637,27.07,208.55,208.42,67.1388]
[1759153739638,6.65,208.55,208.42,67.1388]
[1759153739842,6.65,208.55,208.43,67.1357]
[1759153740044,6.65,208.55,208.41,7.98]
[1759153740247,6.65,208.55,208.43,67.1357]
[1759153740445,6.65,208.55,208.44,7.98]
[1759153740643,6.65,208.55,208.45,4.3154]
[1759153740946,6.65,208.55,208.44,7.98]
[1759153741139,10.9634,208.55,208.44,7.98]
[1759153741342,6.65,208.55,208.38,7.98]
[1759153741745,6.65,208.48,208.32,67.1713]
[1759153741945,85.29,208.48,208.32,67.1713]
[1759153742247,4.3151,208.47,208.34,4.3177]
[1759153742748,4.316,208.43,208.31,12.2982]
[1759153742945,4.316,208.43,208.31,7.98]
[1759153743150,6.65,208.44,208.31,7.98]
[1759153743339,98.55,208.44,208.32,4.3181]
[1759153743541,6.65,208.44,208.32,4.3181]
[1759153743739,73.7579,208.52,208.34,7.98]
[1759153743950,128.54,208.51,208.34,7.98]
[1759153744146,6.65,208.52,208.34,7.98]
[1759153744448,128.52,208.51,208.36,4.3172]
[1759153744744,4.3156,208.45,208.34,7.98]
[1759153744948,6.65,208.44,208.32,4.318]
[1759153746148,123.41,208.44,208.32,4.318]
[1759153746451,6.65,208.44,208.34,4.3176]
[1759153746644,6.65,208.44,208.35,67.1611]
[1759153746844,6.65,208.44,208.34,67.1648]
[1759153747042,6.65,208.44,208.33,7.98]
[1759153747043,6.65,208.44,208.33,12.2978]
[1759153747247,6.65,208.44,208.33,4.3178]
[1759153747847,135.33,208.44,208.3,4.3184]
[1759153748055,6.65,208.41,208.28,7.98]
[1759153748355,4.3168,208.39,208.28,7.98]
[1759153748653,6.65,208.39,208.27,4.3191]
[1759153748854,6.65,208.39,208.23,75.18]
[1759153749551,6.65,208.39,208.26,4.3193]
[1759153749747,6.65,208.39,208.26,67.19]
[1759153749953,91.27,208.39,208.26,67.19]
[1759153750448,6.65,208.39,208.28,4.3189]
[1759153750646,6.65,208.39,208.27,7.98]
[1759153751555,6.65,208.39,208.27,12.2991]
[1759153751947,73.8,208.39,208.27,7.98]
[1759153752148,4.3174,208.36,208.24,4.3197]
[1759153753155,67.1691,208.33,208.17,67.2183]
[1759153753348,67.1759,208.31,208.17,7.98]
[1759153753655,4.319,208.28,208.17,7.98]
[1759153753851,6.65,208.28,208.17,7.98]
[1759153754052,4.3198,208.24,208.12,12.3021]
[1759153754350,6.65,208.28,208.12,12.3021]
[1759153754351,6.65,208.28,208.12,7.98]
[1759153754654,4.3198,208.24,208.12,7.98]
[1759153754850,6.65,208.28,208.15,67.2262]
[1759153755152,57.51,208.28,208.19,4.3207]
[1759153755453,57.51,208.28,208.17,7.98]
[1759153756052,57.51,208.28,208.12,12.35432661]
[1759153756053,6.65,208.26,208.12,12.35432661]
[1759153756252,6.65,208.26,208.12,7.98]
[1759153756455,4.3201,208.23,208.13,4.322]
[1759153756649,67.195,208.25,208.12,7.98]
[1759153756854,4.3205,208.21,208.12,7.98]
[1759153757055,4.3205,208.21,208.07,75.232]
[1759153757253,67.2111,208.2,208.07,7.98]
[1759153757452,4.3217,208.15,208.07,7.98]
[1759153757858,67.2079,208.21,208.07,7.98]
[1759153757859,6.65,208.26,208.08,67.2494]
[1759153758050,6.65,208.26,208.11,7.98]
[1759153758350,73.8425,208.26,208.11,7.98]
[1759153758551,10.9703,208.22,208.11,7.98]
[1759153758754,128.2,208.26,208.12,67.2317]
[1759153758954,322.42,208.27,208.11,75.215]
[1759153759152,322.42,208.27,208.14,7.98]
[1759153759655,454.939,208.27,208.15,4.3214]
[1759153759850,450.62,208.27,208.15,4.3214]
[1759153760244,322.42,208.27,208.15,4.3214]
[1759153760445,128.2,208.26,208.15,4.3214]
[1759153761049,6.67,208.25,208.14,7.98]
[1759153761757,6.67,208.25,208.15,67.2199]
[1759153762053,6.67,208.25,208.14,7.98]
[1759153762360,6.67,208.25,208.15,67.2222]
[1759153762856,6.67,208.25,208.17,4.3208]
[1759153763054,6.67,208.25,208.14,7.98]
[1759153763452,6.67,208.25,208.16,4.3212]
[1759153763957,4.3196,208.24,208.14,7.98]
[1759153764559,128.22,208.23,208.14,7.98]
[1759153765256,6.67,208.25,208.14,7.98]
[1759153765459,322.42,208.27,208.14,7.98]
[1759153765659,128.22,208.26,208.17,4.3208]
[1759153766062,450.64,208.27,208.15,67.222]
[1759153766359,4.3191,208.26,208.17,4.321]
[1759153766553,450.64,208.27,208.17,4.321]
[1759153766757,6.64,208.3,208.19,67.209]
[1759153766959,6.64,208.3,208.18,4.37432661]
[1759153768257,6.64,208.3,208.17,7.72]
[1759153768655,6.64,208.27,208.17,7.72]
[1759153768857,6.64,208.27,208.1,67.2367]
[1759153769160,67.1813,208.28,208.1,67.2367]
[1759153769161,4.3202,208.21,208.13,7.72]
[1759153769354,67.2006,208.22,208.08,7.72]
[1759153769656,6.64,208.21,208.08,7.72]
[1759153770651,6.64,208.21,208.08,74.9644]
[1759153771056,40.12,208.2,208.08,7.72]
[1759153771453,100.7804,208.21,208.11,4.3221]
[1759153772053,6.64,208.21,208.11,67.2348]
[1759153772260,6.64,208.3,208.15,67.222]
[1759153772463,54.62,208.29,208.16,7.72]
[1759153772759,4.3189,208.27,208.16,12.041]
[1759153773063,6.64,208.28,208.16,12.041]
[1759153773955,6.64,208.28,208.16,7.72]
[1759153774157,116.8,208.27,208.16,7.72]
[1759153774556,116.8,208.27,208.12,12.09432661]
[1759153774557,6.64,208.26,208.12,12.09432661]
[1759153774757,4.3196,208.24,208.16,4.3212]
[1759153776856,4.3196,208.24,208.12,74.952]
[1759153776857,4.32,208.23,208.14,4.3216]
[1759153777056,6.64,208.21,208.12,7.72]
[1759153777260,4.3206,208.19,208.12,12.0419]
[1759153777462,93.2,208.2,208.07,7.72]
[1759153777662,93.2,208.2,208.08,67.2449]
[1759153778064,93.2,208.2,208.07,7.72]
[1759153778464,93.2,208.2,208.08,67.2448]
[1759153778669,73.8207,208.28,208.11,7.72]
[1759153778870,134.86,208.24,208.11,7.72]
[1759153779065,4.32,208.22,208.11,7.72]
[1759153779370,6.64,208.21,208.11,7.72]
[1759153779761,4.3208,208.18,208.11,7.72]
[1759153779966,6.64,208.19,208.06,7.72]
[1759153780767,6.64,208.24,208.11,67.2352]
[1759153780967,52.6997,208.24,208.15,4.3212]
[1759153781370,48.38,208.24,208.1,7.72]
[1759153781568,48.38,208.24,208.11,4.3222]
[1759153782474,6.64,208.24,208.1,7.72]